[Event "Titled Tuesday Blitz October 18 Late 2022"]
[White "Pap, Gyula"]
[Black "Lizak, Peter"]
[WhiteFideId "725323"]
[BlackFideId "731595"]
[WhiteElo "2519"]
[BlackElo "2420"]
[Result "1-0"]
[Round "04"]
[TimeControl "180+1"]
[Date "2022.10.18"]
[WhiteClock "0:00:05"]
[BlackClock "0:00:04"]

1. g3 {[%clk 0:03:00]}  Nc6 {[%clk 0:02:59]} 2. Bg2 {[%clk 0:03:00]}  d5 {[%clk 0:02:59]} 3. d4 {[%clk 0:02:56]}  e5 {[%clk 0:02:59]} 4. dxe5 {[%clk 0:02:55]}  Be6 {[%clk 0:02:56]} 5. Nf3 {[%clk 0:02:54]}  h6 {[%clk 0:02:50]} 6. h4 {[%clk 0:02:41]}  Qd7 {[%clk 0:02:50]} 7. c3 {[%clk 0:02:38]}  g6 {[%clk 0:02:48]} 8. Bf4 {[%clk 0:02:33]}  Nge7 {[%clk 0:02:46]} 9. Nbd2 {[%clk 0:02:33]}  Nf5 {[%clk 0:02:35]} 10. Nb3 {[%clk 0:02:33]}  a5 {[%clk 0:02:34]} 11. O-O {[%clk 0:02:28]}  a4 {[%clk 0:02:34]} 12. Nbd4 {[%clk 0:02:28]}  Ncxd4 {[%clk 0:02:31]} 13. cxd4 {[%clk 0:02:24]}  Be7 {[%clk 0:02:31]} 14. Qd2 {[%clk 0:02:23]}  Qb5 {[%clk 0:02:10]} 15. a3 {[%clk 0:02:16]}  Ra6 {[%clk 0:02:06]} 16. Rfc1 {[%clk 0:02:14]}  c6 {[%clk 0:02:05]} 17. Bf1 {[%clk 0:02:09]}  Qa5 {[%clk 0:02:05]} 18. Qd1 {[%clk 0:02:06]}  Rb6 {[%clk 0:02:04]} 19. Rc2 {[%clk 0:02:04]}  Rg8 {[%clk 0:01:54]} 20. Bd2 {[%clk 0:01:58]}  Qa7 {[%clk 0:01:49]} 21. e3 {[%clk 0:01:52]}  g5 {[%clk 0:01:45]} 22. hxg5 {[%clk 0:01:53]}  hxg5 {[%clk 0:01:46]} 23. Bd3 {[%clk 0:01:53]}  g4 {[%clk 0:01:40]} 24. Nh2 {[%clk 0:01:54]}  Rb3 {[%clk 0:01:33]} 25. Bc3 {[%clk 0:01:47]}  Kd7 {[%clk 0:01:18]} 26. Re2 {[%clk 0:01:33]}  Qb8 {[%clk 0:00:58]} 27. Qc2 {[%clk 0:01:22]}  Rg5 {[%clk 0:00:53]} 28. Nxg4 {[%clk 0:00:29]}  Nxg3 {[%clk 0:00:47]} 29. fxg3 {[%clk 0:00:27]}  Rxg4 {[%clk 0:00:43]} 30. Rg2 {[%clk 0:00:24]}  Qg8 {[%clk 0:00:42]} 31. Qf2 {[%clk 0:00:19]}  Rg5 {[%clk 0:00:40]} 32. Rf1 {[%clk 0:00:17]}  Bxa3 {[%clk 0:00:18]} 33. Bc2 {[%clk 0:00:12]}  Rxc3 {[%clk 0:00:17]} 34. bxc3 {[%clk 0:00:12]}  Be7 {[%clk 0:00:16]} 35. Bxa4 {[%clk 0:00:11]}  b5 {[%clk 0:00:14]} 36. Bc2 {[%clk 0:00:11]}  Bh3 {[%clk 0:00:15]} 37. Qxf7 {[%clk 0:00:09]}  Qxf7 {[%clk 0:00:14]} 38. Rxf7 {[%clk 0:00:10]}  Bxg2 {[%clk 0:00:14]} 39. Kxg2 {[%clk 0:00:10]}  Ke6 {[%clk 0:00:14]} 40. Rh7 {[%clk 0:00:09]}  c5 {[%clk 0:00:15]} 41. Rh6+ {[%clk 0:00:09]}  Kd7 {[%clk 0:00:15]} 42. Kf3 {[%clk 0:00:05]}  b4 {[%clk 0:00:15]} 43. Ba4+ {[%clk 0:00:04]}  Kd8 {[%clk 0:00:13]} 44. cxb4 {[%clk 0:00:04]}  cxb4 {[%clk 0:00:12]} 45. Bb3 {[%clk 0:00:05]}  Rg8 {[%clk 0:00:10]} 46. Bxd5 {[%clk 0:00:04]}  Rf8+ {[%clk 0:00:11]} 47. Ke2 {[%clk 0:00:05]}  Kd7 {[%clk 0:00:10]} 48. Rb6 {[%clk 0:00:04]}  Rh8 {[%clk 0:00:08]} 49. Rb7+ {[%clk 0:00:05]}  Ke8 {[%clk 0:00:04]} 50. Rb8+ {[%clk 0:00:05]}  Bd8 {[%clk 0:00:04]} 51. Rxb4 {[%clk 0:00:05]} 1-0


[Site "https://www.chess.com"]

[Event "Titled Tuesday Blitz October 18 Late 2022"]
[White "Papasimakopoulos, Alexandros"]
[Black "Aggelis, Nikolaos"]
[WhiteFideId "4244125"]
[BlackFideId "4213220"]
[WhiteElo "2357"]
[BlackElo "2187"]
[Result "1-0"]
[Round "04"]
[TimeControl "180+1"]
[Date "2022.10.18"]
[WhiteClock "0:00:09"]
[BlackClock "0:00:16"]

1. d4 {[%clk 0:01:53]}  c5 {[%clk 0:02:53]} 2. d5 {[%clk 0:01:53]}  e6 {[%clk 0:02:52]} 3. c4 {[%clk 0:01:54]}  exd5 {[%clk 0:02:52]} 4. cxd5 {[%clk 0:01:55]}  d6 {[%clk 0:02:52]} 5. Nc3 {[%clk 0:01:55]}  Nf6 {[%clk 0:02:53]} 6. Nf3 {[%clk 0:01:56]}  g6 {[%clk 0:02:53]} 7. Bf4 {[%clk 0:01:57]}  Bg7 {[%clk 0:02:54]} 8. Qa4+ {[%clk 0:01:57]}  Bd7 {[%clk 0:02:50]} 9. Qb3 {[%clk 0:01:58]}  Bc8 {[%clk 0:02:50]} 10. e4 {[%clk 0:01:57]}  O-O {[%clk 0:02:50]} 11. Be2 {[%clk 0:01:57]}  a6 {[%clk 0:02:49]} 12. a4 {[%clk 0:01:57]}  Re8 {[%clk 0:02:48]} 13. Nd2 {[%clk 0:01:57]}  Qc7 {[%clk 0:02:47]} 14. O-O {[%clk 0:01:56]}  Nbd7 {[%clk 0:02:46]} 15. Rfe1 {[%clk 0:01:53]}  Nh5 {[%clk 0:02:46]} 16. Bxh5 {[%clk 0:01:53]}  gxh5 {[%clk 0:02:45]} 17. Nc4 {[%clk 0:01:52]}  Ne5 {[%clk 0:02:41]} 18. Nb6 {[%clk 0:01:51]}  Rb8 {[%clk 0:02:38]} 19. Be3 {[%clk 0:01:11]}  f5 {[%clk 0:02:07]} 20. Nxc8 {[%clk 0:01:10]}  Qxc8 {[%clk 0:02:03]} 21. exf5 {[%clk 0:01:09]}  Qxf5 {[%clk 0:02:03]} 22. Qb6 {[%clk 0:01:08]}  Qg6 {[%clk 0:01:59]} 23. Re2 {[%clk 0:00:52]}  h4 {[%clk 0:01:48]} 24. h3 {[%clk 0:00:50]}  Nc4 {[%clk 0:01:26]} 25. Qc7 {[%clk 0:00:50]}  Qf6 {[%clk 0:01:04]} 26. Rae1 {[%clk 0:00:40]}  Ne5 {[%clk 0:00:48]} 27. Ne4 {[%clk 0:00:37]}  Qg6 {[%clk 0:00:47]} 28. Bg5 {[%clk 0:00:24]}  Nf7 {[%clk 0:00:42]} 29. Bxh4 {[%clk 0:00:21]}  Be5 {[%clk 0:00:23]} 30. Nf6+ {[%clk 0:00:18]}  Bxf6 {[%clk 0:00:19]} 31. Rxe8+ {[%clk 0:00:19]}  Rxe8 {[%clk 0:00:19]} 32. Rxe8+ {[%clk 0:00:19]}  Kg7 {[%clk 0:00:20]} 33. Bxf6+ {[%clk 0:00:19]}  Qxf6 {[%clk 0:00:21]} 34. Qe7 {[%clk 0:00:19]}  Qxe7 {[%clk 0:00:18]} 35. Rxe7 {[%clk 0:00:18]}  b5 {[%clk 0:00:19]} 36. axb5 {[%clk 0:00:18]}  axb5 {[%clk 0:00:20]} 37. Kf1 {[%clk 0:00:18]}  Kf6 {[%clk 0:00:19]} 38. Re6+ {[%clk 0:00:17]}  Kf5 {[%clk 0:00:18]} 39. Re7 {[%clk 0:00:17]}  Kf6 {[%clk 0:00:18]} 40. Rb7 {[%clk 0:00:15]}  b4 {[%clk 0:00:17]} 41. f4 {[%clk 0:00:15]}  h5 {[%clk 0:00:13]} 42. g4 {[%clk 0:00:16]}  hxg4 {[%clk 0:00:13]} 43. hxg4 {[%clk 0:00:16]}  Kg6 {[%clk 0:00:13]} 44. Kf2 {[%clk 0:00:15]}  Nh6 {[%clk 0:00:13]} 45. Kg3 {[%clk 0:00:15]}  Nf7 {[%clk 0:00:14]} 46. Rd7 {[%clk 0:00:14]}  Kf6 {[%clk 0:00:15]} 47. g5+ {[%clk 0:00:13]}  Kg6 {[%clk 0:00:16]} 48. Kg4 {[%clk 0:00:13]}  Kg7 {[%clk 0:00:16]} 49. Kf5 {[%clk 0:00:09]}  Kf8 {[%clk 0:00:16]} 50. Kf6 {[%clk 0:00:09]} 1-0


[Site "https://www.chess.com"]

[Event "Titled Tuesday Blitz October 18 Late 2022"]
[White "Priasmoro, Novendra"]
[Black "Kamsky, Gata"]
[WhiteFideId "7105029"]
[BlackFideId "2000024"]
[WhiteElo "2412"]
[BlackElo "2666"]
[Result "1/2-1/2"]
[Round "04"]
[TimeControl "180+1"]
[Date "2022.10.18"]
[WhiteClock "0:00:04"]
[BlackClock "0:00:08"]

1. e4 {[%clk 0:03:00]}  c5 {[%clk 0:02:58]} 2. Nf3 {[%clk 0:03:00]}  e6 {[%clk 0:02:55]} 3. d4 {[%clk 0:03:00]}  cxd4 {[%clk 0:02:54]} 4. Nxd4 {[%clk 0:03:01]}  a6 {[%clk 0:02:54]} 5. Bd3 {[%clk 0:03:00]}  Bc5 {[%clk 0:02:52]} 6. Nb3 {[%clk 0:02:58]}  Ba7 {[%clk 0:02:51]} 7. Qe2 {[%clk 0:02:57]}  d6 {[%clk 0:02:47]} 8. Be3 {[%clk 0:02:57]}  e5 {[%clk 0:02:45]} 9. Nc3 {[%clk 0:02:49]}  Nf6 {[%clk 0:02:37]} 10. O-O-O {[%clk 0:02:48]}  Bxe3+ {[%clk 0:02:24]} 11. Qxe3 {[%clk 0:02:49]}  Be6 {[%clk 0:02:24]} 12. Be2 {[%clk 0:02:47]}  Nc6 {[%clk 0:02:16]} 13. f4 {[%clk 0:02:40]}  O-O {[%clk 0:01:59]} 14. f5 {[%clk 0:02:21]}  Bxb3 {[%clk 0:01:58]} 15. axb3 {[%clk 0:02:21]}  Nd4 {[%clk 0:01:58]} 16. Kb1 {[%clk 0:02:18]}  Rc8 {[%clk 0:01:56]} 17. Rxd4 {[%clk 0:02:08]}  exd4 {[%clk 0:01:56]} 18. Qxd4 {[%clk 0:02:09]}  Qe7 {[%clk 0:01:40]} 19. Rd1 {[%clk 0:02:09]}  Rfd8 {[%clk 0:01:35]} 20. g4 {[%clk 0:02:09]}  Qe5 {[%clk 0:01:34]} 21. g5 {[%clk 0:02:06]}  Qxd4 {[%clk 0:01:34]} 22. Rxd4 {[%clk 0:02:06]}  Ne8 {[%clk 0:01:26]} 23. Nd5 {[%clk 0:01:45]}  Kf8 {[%clk 0:01:24]} 24. b4 {[%clk 0:01:40]}  b5 {[%clk 0:01:20]} 25. c4 {[%clk 0:01:36]}  bxc4 {[%clk 0:01:17]} 26. Bxc4 {[%clk 0:01:37]}  Rc6 {[%clk 0:01:07]} 27. b3 {[%clk 0:01:26]}  Rb8 {[%clk 0:01:03]} 28. Kb2 {[%clk 0:01:20]}  Rb7 {[%clk 0:00:51]} 29. Ka3 {[%clk 0:01:07]}  Nc7 {[%clk 0:00:48]} 30. Nxc7 {[%clk 0:01:07]}  Rbxc7 {[%clk 0:00:48]} 31. Ka4 {[%clk 0:01:07]}  Ke7 {[%clk 0:00:44]} 32. Ka5 {[%clk 0:01:07]}  Ra7 {[%clk 0:00:44]} 33. h4 {[%clk 0:01:05]}  f6 {[%clk 0:00:40]} 34. Rd1 {[%clk 0:00:56]}  g6 {[%clk 0:00:34]} 35. fxg6 {[%clk 0:00:49]}  hxg6 {[%clk 0:00:33]} 36. Rf1 {[%clk 0:00:48]}  d5 {[%clk 0:00:11]} 37. Bxd5 {[%clk 0:00:43]}  Rd6 {[%clk 0:00:11]} 38. gxf6+ {[%clk 0:00:16]}  Rxf6 {[%clk 0:00:10]} 39. Rxf6 {[%clk 0:00:05]}  Kxf6 {[%clk 0:00:11]} 40. Kb6 {[%clk 0:00:06]}  Rh7 {[%clk 0:00:11]} 41. Kxa6 {[%clk 0:00:07]}  Rxh4 {[%clk 0:00:11]} 42. b5 {[%clk 0:00:08]}  Ke5 {[%clk 0:00:10]} 43. b6 {[%clk 0:00:08]}  g5 {[%clk 0:00:08]} 44. b7 {[%clk 0:00:09]}  Rh8 {[%clk 0:00:08]} 45. Ka7 {[%clk 0:00:07]}  g4 {[%clk 0:00:08]} 46. Bc4 {[%clk 0:00:07]}  g3 {[%clk 0:00:08]} 47. Bf1 {[%clk 0:00:07]}  Kxe4 {[%clk 0:00:08]} 48. b8=Q {[%clk 0:00:07]}  Rxb8 {[%clk 0:00:07]} 49. Kxb8 {[%clk 0:00:08]}  Kd4 {[%clk 0:00:07]} 50. b4 {[%clk 0:00:06]}  g2 {[%clk 0:00:07]} 51. Bxg2 {[%clk 0:00:05]}  Kc4 {[%clk 0:00:08]} 52. b5 {[%clk 0:00:04]}  Kxb5 {[%clk 0:00:08]} 1/2-1/2


[Site "https://www.chess.com"]

[Event "Titled Tuesday Blitz October 18 Late 2022"]
[White "Rasulov, Vugar"]
[Black "Sargsyan, Anna M."]
[WhiteFideId "13402390"]
[BlackFideId "13308130"]
[WhiteElo "2509"]
[BlackElo "2284"]
[Result "0-1"]
[Round "04"]
[TimeControl "180+1"]
[Date "2022.10.18"]
[WhiteClock "0:00:05"]
[BlackClock "0:00:09"]

1. Nf3 {[%clk 0:03:00]}  d5 {[%clk 0:02:59]} 2. e3 {[%clk 0:03:01]}  Nf6 {[%clk 0:02:59]} 3. c4 {[%clk 0:03:01]}  c6 {[%clk 0:02:58]} 4. Nc3 {[%clk 0:03:01]}  e6 {[%clk 0:02:59]} 5. d4 {[%clk 0:03:01]}  Nbd7 {[%clk 0:02:58]} 6. Bd3 {[%clk 0:03:01]}  dxc4 {[%clk 0:02:57]} 7. Bxc4 {[%clk 0:03:02]}  b5 {[%clk 0:02:57]} 8. Bd3 {[%clk 0:03:03]}  Bd6 {[%clk 0:02:58]} 9. e4 {[%clk 0:03:01]}  e5 {[%clk 0:02:56]} 10. O-O {[%clk 0:02:52]}  O-O {[%clk 0:02:56]} 11. h3 {[%clk 0:02:50]}  Re8 {[%clk 0:02:49]} 12. Re1 {[%clk 0:02:49]}  a6 {[%clk 0:02:40]} 13. a4 {[%clk 0:02:46]}  b4 {[%clk 0:02:35]} 14. Ne2 {[%clk 0:02:45]}  Bb7 {[%clk 0:02:27]} 15. Qc2 {[%clk 0:02:33]}  exd4 {[%clk 0:02:16]} 16. Nexd4 {[%clk 0:02:34]}  Ne5 {[%clk 0:02:14]} 17. Nxe5 {[%clk 0:02:25]}  Bxe5 {[%clk 0:02:14]} 18. Nf3 {[%clk 0:02:26]}  h6 {[%clk 0:01:57]} 19. Nxe5 {[%clk 0:02:24]}  Rxe5 {[%clk 0:01:57]} 20. Bf4 {[%clk 0:02:24]}  Re8 {[%clk 0:01:48]} 21. Rad1 {[%clk 0:02:24]}  Qa5 {[%clk 0:01:44]} 22. Bc4 {[%clk 0:02:16]}  Qh5 {[%clk 0:01:21]} 23. f3 {[%clk 0:02:04]}  a5 {[%clk 0:01:19]} 24. Kh2 {[%clk 0:01:52]}  Rad8 {[%clk 0:01:02]} 25. b3 {[%clk 0:01:47]}  Bc8 {[%clk 0:00:52]} 26. Bc7 {[%clk 0:01:19]}  Rxd1 {[%clk 0:00:44]} 27. Qxd1 {[%clk 0:01:19]}  Be6 {[%clk 0:00:29]} 28. Qd3 {[%clk 0:01:01]}  Qc5 {[%clk 0:00:25]} 29. Bxe6 {[%clk 0:00:57]}  Rxe6 {[%clk 0:00:24]} 30. Re2 {[%clk 0:00:43]}  Qg5 {[%clk 0:00:09]} 31. Qd2 {[%clk 0:00:37]}  Qc5 {[%clk 0:00:08]} 32. Qd3 {[%clk 0:00:24]}  Qg5 {[%clk 0:00:08]} 33. f4 {[%clk 0:00:23]}  Qc5 {[%clk 0:00:06]} 34. f5 {[%clk 0:00:22]}  Re8 {[%clk 0:00:06]} 35. Bd6 {[%clk 0:00:20]}  Qb6 {[%clk 0:00:06]} 36. e5 {[%clk 0:00:20]}  Nd5 {[%clk 0:00:06]} 37. e6 {[%clk 0:00:21]}  f6 {[%clk 0:00:05]} 38. Qg3 {[%clk 0:00:17]}  Qd4 {[%clk 0:00:05]} 39. Rf2 {[%clk 0:00:09]}  Nc3 {[%clk 0:00:04]} 40. Bf4 {[%clk 0:00:08]}  Ne4 {[%clk 0:00:04]} 41. Qe3 {[%clk 0:00:08]}  Qxe3 {[%clk 0:00:03]} 42. Bxe3 {[%clk 0:00:09]}  Nxf2 {[%clk 0:00:04]} 43. Bxf2 {[%clk 0:00:10]}  g6 {[%clk 0:00:04]} 44. g4 {[%clk 0:00:10]}  gxf5 {[%clk 0:00:05]} 45. gxf5 {[%clk 0:00:11]}  Rd8 {[%clk 0:00:05]} 46. Bb6 {[%clk 0:00:07]}  Rd5 {[%clk 0:00:05]} 47. Kg3 {[%clk 0:00:06]}  Rxf5 {[%clk 0:00:05]} 48. Kg4 {[%clk 0:00:04]}  Re5 {[%clk 0:00:06]} 49. Kf4 {[%clk 0:00:05]}  Rxe6 {[%clk 0:00:06]} 50. Bxa5 {[%clk 0:00:05]}  c5 {[%clk 0:00:06]} 51. Bc7 {[%clk 0:00:05]}  Rc6 {[%clk 0:00:06]} 52. Ba5 {[%clk 0:00:04]}  c4 {[%clk 0:00:06]} 53. Bxb4 {[%clk 0:00:03]}  cxb3 {[%clk 0:00:06]} 54. Ba3 {[%clk 0:00:04]}  Rc4+ {[%clk 0:00:07]} 55. Ke3 {[%clk 0:00:04]}  Rxa4 {[%clk 0:00:08]} 56. Bb2 {[%clk 0:00:05]}  Ra2 {[%clk 0:00:08]} 57. Bxf6 {[%clk 0:00:05]}  b2 {[%clk 0:00:09]} 0-1


[Site "https://www.chess.com"]

[Event "Titled Tuesday Blitz October 18 Late 2022"]
[White "Rego, Pedro Filipe"]
[Black "Pavlidou, Ekaterini"]
[WhiteFideId "1904310"]
[BlackFideId "4213262"]
[WhiteElo "2200"]
[BlackElo "2125"]
[Result "1-0"]
[Round "04"]
[TimeControl "180+1"]
[Date "2022.10.19"]
[WhiteClock "0:00:32"]
[BlackClock "0:01:04"]

1. c4 {[%clk 0:02:45]}  c5 {[%clk 0:02:59]} 2. Nc3 {[%clk 0:02:45]}  Nc6 {[%clk 0:02:59]} 3. g3 {[%clk 0:02:45]}  g6 {[%clk 0:02:59]} 4. Bg2 {[%clk 0:02:45]}  Bg7 {[%clk 0:03:00]} 5. Nf3 {[%clk 0:02:45]}  e5 {[%clk 0:03:00]} 6. O-O {[%clk 0:02:44]}  d6 {[%clk 0:03:00]} 7. Ne1 {[%clk 0:02:44]}  h5 {[%clk 0:02:59]} 8. h3 {[%clk 0:02:43]}  h4 {[%clk 0:02:59]} 9. g4 {[%clk 0:02:43]}  g5 {[%clk 0:02:57]} 10. Nc2 {[%clk 0:02:30]}  f5 {[%clk 0:02:57]} 11. gxf5 {[%clk 0:02:30]}  Bxf5 {[%clk 0:02:56]} 12. Ne3 {[%clk 0:02:31]}  Be6 {[%clk 0:02:55]} 13. Ncd5 {[%clk 0:02:30]}  Nge7 {[%clk 0:02:53]} 14. Rb1 {[%clk 0:02:21]}  Qd7 {[%clk 0:02:47]} 15. Kh2 {[%clk 0:02:16]}  e4 {[%clk 0:02:41]} 16. Bxe4 {[%clk 0:01:55]}  Be5+ {[%clk 0:02:40]} 17. Kh1 {[%clk 0:01:49]}  Bxh3 {[%clk 0:02:38]} 18. Nxe7 {[%clk 0:01:32]}  Nxe7 {[%clk 0:02:37]} 19. b4 {[%clk 0:01:24]}  Bxf1 {[%clk 0:02:24]} 20. Qxf1 {[%clk 0:01:25]}  cxb4 {[%clk 0:02:01]} 21. Rxb4 {[%clk 0:01:25]}  d5 {[%clk 0:01:59]} 22. Nxd5 {[%clk 0:01:18]}  Nc6 {[%clk 0:01:42]} 23. Bb2 {[%clk 0:00:58]}  O-O-O {[%clk 0:01:27]} 24. Bxe5 {[%clk 0:00:43]}  Nxb4 {[%clk 0:01:24]} 25. Bf5 {[%clk 0:00:36]}  Qxf5 {[%clk 0:01:09]} 26. Ne7+ {[%clk 0:00:36]}  Kd7 {[%clk 0:01:08]} 27. Nxf5 {[%clk 0:00:36]}  Ke6 {[%clk 0:01:05]} 28. Bxh8 {[%clk 0:00:35]}  Rxh8 {[%clk 0:01:04]} 29. Qh3 {[%clk 0:00:32]} 1-0


[Site "https://www.chess.com"]

[Event "Titled Tuesday Blitz October 18 Late 2022"]
[White "Remolar Gallen, Jose"]
[Black "Araujo, Everson De Moura"]
[WhiteFideId "2215187"]
[BlackFideId "22737197"]
[WhiteElo "2214"]
[BlackElo "1995"]
[Result "1-0"]
[Round "04"]
[TimeControl "180+1"]
[Date "2022.10.19"]
[WhiteClock "0:00:30"]
[BlackClock "0:00:49"]

1. d4 {[%clk 0:03:00]}  d5 {[%clk 0:02:58]} 2. c4 {[%clk 0:03:00]}  c6 {[%clk 0:02:59]} 3. Nc3 {[%clk 0:02:59]}  Nf6 {[%clk 0:02:59]} 4. Nf3 {[%clk 0:03:00]}  a6 {[%clk 0:02:58]} 5. Bg5 {[%clk 0:02:53]}  Nbd7 {[%clk 0:02:57]} 6. cxd5 {[%clk 0:02:51]}  cxd5 {[%clk 0:02:56]} 7. e3 {[%clk 0:02:49]}  g6 {[%clk 0:02:54]} 8. Be2 {[%clk 0:02:43]}  Bg7 {[%clk 0:02:54]} 9. O-O {[%clk 0:02:43]}  O-O {[%clk 0:02:55]} 10. Ne5 {[%clk 0:02:37]}  Qb6 {[%clk 0:02:42]} 11. Nxd7 {[%clk 0:02:31]}  Bxd7 {[%clk 0:02:34]} 12. Bxf6 {[%clk 0:02:28]}  exf6 {[%clk 0:02:34]} 13. Nxd5 {[%clk 0:02:29]}  Qxb2 {[%clk 0:02:35]} 14. Bf3 {[%clk 0:01:57]}  Rab8 {[%clk 0:02:12]} 15. Qc1 {[%clk 0:01:44]}  Qxc1 {[%clk 0:01:55]} 16. Rfxc1 {[%clk 0:01:45]}  Rfe8 {[%clk 0:01:40]} 17. Rc7 {[%clk 0:01:42]}  Bc6 {[%clk 0:01:41]} 18. Ne7+ {[%clk 0:01:41]}  Kf8 {[%clk 0:01:41]} 19. Nxc6 {[%clk 0:01:35]}  bxc6 {[%clk 0:01:42]} 20. Rxc6 {[%clk 0:01:35]}  Rb2 {[%clk 0:01:41]} 21. Rxa6 {[%clk 0:01:30]}  Rc8 {[%clk 0:01:41]} 22. g3 {[%clk 0:01:25]}  Rcc2 {[%clk 0:01:40]} 23. Rf1 {[%clk 0:01:22]}  Rxa2 {[%clk 0:01:38]} 24. Rxa2 {[%clk 0:01:22]}  Rxa2 {[%clk 0:01:39]} 25. Kg2 {[%clk 0:01:20]}  f5 {[%clk 0:01:38]} 26. Re1 {[%clk 0:01:19]}  Ke7 {[%clk 0:01:36]} 27. Re2 {[%clk 0:01:19]}  Ra1 {[%clk 0:01:35]} 28. Rb2 {[%clk 0:01:18]}  Ra7 {[%clk 0:01:33]} 29. Rb7+ {[%clk 0:01:18]}  Rxb7 {[%clk 0:01:33]} 30. Bxb7 {[%clk 0:01:19]}  f6 {[%clk 0:01:27]} 31. Kf3 {[%clk 0:01:18]}  g5 {[%clk 0:01:25]} 32. Bc8 {[%clk 0:01:17]}  Bf8 {[%clk 0:01:11]} 33. Bxf5 {[%clk 0:01:16]}  h6 {[%clk 0:01:12]} 34. Kg4 {[%clk 0:01:14]}  Kf7 {[%clk 0:01:11]} 35. Kh5 {[%clk 0:00:59]}  Kg7 {[%clk 0:01:10]} 36. h4 {[%clk 0:00:58]}  Bb4 {[%clk 0:01:10]} 37. f4 {[%clk 0:00:54]}  gxh4 {[%clk 0:01:06]} 38. Kxh4 {[%clk 0:00:54]}  Bd2 {[%clk 0:01:06]} 39. e4 {[%clk 0:00:54]}  Be1 {[%clk 0:00:57]} 40. d5 {[%clk 0:00:54]}  Kf7 {[%clk 0:00:58]} 41. d6 {[%clk 0:00:52]}  Bf2 {[%clk 0:00:52]} 42. Kg4 {[%clk 0:00:50]}  Ke8 {[%clk 0:00:52]} 43. Be6 {[%clk 0:00:34]}  Bd4 {[%clk 0:00:51]} 44. Kf5 {[%clk 0:00:34]}  Bf2 {[%clk 0:00:51]} 45. g4 {[%clk 0:00:34]}  Bh4 {[%clk 0:00:51]} 46. Kg6 {[%clk 0:00:32]}  Bg3 {[%clk 0:00:50]} 47. Kf5 {[%clk 0:00:31]}  Bh4 {[%clk 0:00:50]} 48. e5 {[%clk 0:00:32]}  fxe5 {[%clk 0:00:48]} 49. fxe5 {[%clk 0:00:33]}  Bg5 {[%clk 0:00:48]} 50. Bc8 {[%clk 0:00:32]}  Kd8 {[%clk 0:00:49]} 51. Be6 {[%clk 0:00:31]}  Bh4 {[%clk 0:00:50]} 52. Bf7 {[%clk 0:00:31]}  Bg5 {[%clk 0:00:50]} 53. e6 {[%clk 0:00:31]}  Bh4 {[%clk 0:00:50]} 54. Kg6 {[%clk 0:00:31]}  Bg5 {[%clk 0:00:49]} 55. Kh5 {[%clk 0:00:30]}  Bf4 {[%clk 0:00:49]} 56. e7+ {[%clk 0:00:30]} 1-0


[Site "https://www.chess.com"]

[Event "Titled Tuesday Blitz October 18 Late 2022"]
[White "Rodriguez Santiago, Jaime"]
[Black "Malka, Samuel"]
[WhiteFideId "3100898"]
[BlackFideId "20643675"]
[WhiteElo "2025"]
[BlackElo "2469"]
[Result "1-0"]
[Round "04"]
[TimeControl "180+1"]
[Date "2022.10.19"]
[WhiteClock "0:00:20"]
[BlackClock "0:00:01"]

1. c4 {[%clk 0:03:00]}  g6 {[%clk 0:02:58]} 2. Nc3 {[%clk 0:02:58]}  Bg7 {[%clk 0:02:57]} 3. g3 {[%clk 0:02:58]}  c5 {[%clk 0:02:56]} 4. Bg2 {[%clk 0:02:59]}  Nc6 {[%clk 0:02:57]} 5. e4 {[%clk 0:02:59]}  d6 {[%clk 0:02:51]} 6. Nge2 {[%clk 0:02:58]}  Rb8 {[%clk 0:02:42]} 7. a4 {[%clk 0:02:54]}  Nf6 {[%clk 0:02:36]} 8. d3 {[%clk 0:02:53]}  Nd7 {[%clk 0:02:36]} 9. Be3 {[%clk 0:02:50]}  Nd4 {[%clk 0:02:32]} 10. Rb1 {[%clk 0:02:35]}  h5 {[%clk 0:02:21]} 11. h3 {[%clk 0:02:31]}  h4 {[%clk 0:02:00]} 12. g4 {[%clk 0:02:29]}  Nxe2 {[%clk 0:01:54]} 13. Nxe2 {[%clk 0:02:26]}  Ne5 {[%clk 0:01:41]} 14. f4 {[%clk 0:02:23]}  Qa5+ {[%clk 0:01:37]} 15. b4 {[%clk 0:02:04]}  cxb4 {[%clk 0:01:38]} 16. fxe5 {[%clk 0:02:04]}  Bxe5 {[%clk 0:01:32]} 17. O-O {[%clk 0:02:02]}  f6 {[%clk 0:01:02]} 18. d4 {[%clk 0:01:59]}  Bg3 {[%clk 0:01:02]} 19. Nxg3 {[%clk 0:01:45]}  hxg3 {[%clk 0:01:03]} 20. Qe1 {[%clk 0:01:41]}  Qxa4 {[%clk 0:00:59]} 21. Rxb4 {[%clk 0:01:40]}  Qa3 {[%clk 0:00:56]} 22. Rf3 {[%clk 0:01:33]}  Bd7 {[%clk 0:00:43]} 23. Rb1 {[%clk 0:01:20]}  Qa2 {[%clk 0:00:40]} 24. Rc1 {[%clk 0:01:11]}  Rc8 {[%clk 0:00:39]} 25. c5 {[%clk 0:01:03]}  dxc5 {[%clk 0:00:39]} 26. dxc5 {[%clk 0:01:02]}  Bc6 {[%clk 0:00:37]} 27. Rxg3 {[%clk 0:01:00]}  e5 {[%clk 0:00:35]} 28. Bf1 {[%clk 0:00:46]}  Bxe4 {[%clk 0:00:25]} 29. Bc4 {[%clk 0:00:45]}  Rxh3 {[%clk 0:00:20]} 30. Bxa2 {[%clk 0:00:34]}  Rh1+ {[%clk 0:00:20]} 31. Kf2 {[%clk 0:00:34]}  Rh2+ {[%clk 0:00:20]} 32. Kf1 {[%clk 0:00:35]}  Rh1+ {[%clk 0:00:21]} 33. Ke2 {[%clk 0:00:35]}  Rh2+ {[%clk 0:00:21]} 34. Bf2 {[%clk 0:00:34]}  Rd8 {[%clk 0:00:17]} 35. Rd1 {[%clk 0:00:30]}  Rxd1 {[%clk 0:00:07]} 36. Qxd1 {[%clk 0:00:31]}  Bc6 {[%clk 0:00:08]} 37. Qd6 {[%clk 0:00:29]}  Bb5+ {[%clk 0:00:03]} 38. Ke3 {[%clk 0:00:29]}  Bc6 {[%clk 0:00:03]} 39. Qe6+ {[%clk 0:00:29]}  Kd8 {[%clk 0:00:02]} 40. Qxf6+ {[%clk 0:00:29]}  Kc7 {[%clk 0:00:03]} 41. Qxe5+ {[%clk 0:00:29]}  Kc8 {[%clk 0:00:04]} 42. Qe6+ {[%clk 0:00:28]}  Kc7 {[%clk 0:00:04]} 43. Rf3 {[%clk 0:00:26]}  Bxf3 {[%clk 0:00:04]} 44. Kxf3 {[%clk 0:00:26]}  Rh1 {[%clk 0:00:03]} 45. Bg3+ {[%clk 0:00:26]}  Kd8 {[%clk 0:00:03]} 46. Qf6+ {[%clk 0:00:23]}  Kd7 {[%clk 0:00:03]} 47. Be6+ {[%clk 0:00:22]}  Kc6 {[%clk 0:00:03]} 48. Bc8+ {[%clk 0:00:22]}  Kxc5 {[%clk 0:00:03]} 49. Qe5+ {[%clk 0:00:21]}  Kc4 {[%clk 0:00:03]} 50. Be6+ {[%clk 0:00:20]}  Kd3 {[%clk 0:00:02]} 51. Qe4+ {[%clk 0:00:20]}  Kc3 {[%clk 0:00:02]} 52. Be5+ {[%clk 0:00:20]}  Kd2 {[%clk 0:00:02]} 53. Qe2+ {[%clk 0:00:20]}  Kc1 {[%clk 0:00:02]} 54. Bf4+ {[%clk 0:00:20]}  Kb1 {[%clk 0:00:02]} 55. Ba2+ {[%clk 0:00:20]}  Ka1 {[%clk 0:00:01]} 56. Be5# {[%clk 0:00:20]} 1-0


[Site "https://www.chess.com"]